fUST/lending_fUST_20260604
["ID","MTS","AMOUNT","RATE_DAILY","PERIOD"]
[423949282,1780517434000,-500.0,0.00015972,2]
[423949259,1780517434000,-200.0,0.00014908,2]
[423949253,1780517434000,-300.0,0.00014788,2]
[423949252,1780517434000,-200.0,0.00014777,2]
[423949255,1780517434000,-1200.0,0.00014788,2]
[423949247,1780517434000,-200.0,0.00014646,2]
[423949389,1780517439000,-12167.51518706,0.00017205,2]
[423949390,1780517439000,-904.0,0.00017205,2]
[423949382,1780517439000,-200.0,0.00015563,2]
[423949386,1780517439000,-200.0,0.00015956,2]
[423949381,1780517439000,-200.0,0.00015432,2]
[423949387,1780517439000,-500.0,0.00015972,2]
[423949388,1780517439000,-200.0,0.00016087,2]
[423949384,1780517439000,-200.0,0.00015825,2]
[423949391,1780517439000,-326.92399378,0.00015278,2]
[423949385,1780517439000,-500.0,0.00015878,2]
[423949383,1780517439000,-200.0,0.00015694,2]
[423949457,1780517441000,-5.2324,0.00015278,2]
[423949514,1780517450000,-2469.99547405,0.00017205,2]
[423949502,1780517450000,-385.92421015,0.00016611,2]
[423949497,1780517450000,-3288.15533681,0.00015278,2]
[423949501,1780517450000,-200.0,0.0001648,2]
[423949499,1780517450000,-200.0,0.00016349,2]
[423949503,1780517450000,-17812.83989224,0.00017205,2]
[423949498,1780517450000,-200.0,0.00016218,2]
[423949496,1780517450000,-456.0,0.00015278,2]
[423949521,1780517483000,159.9715808,0.00023345,110]
[423949523,1780517484000,159.9715808,0.00023345,110]
[423949522,1780517484000,159.9715808,0.00023345,110]
[423949524,1780517485000,159.9715808,0.00023345,110]
[423949525,1780517485000,159.9715808,0.00023345,110]
[423949526,1780517485000,159.9715808,0.00023345,110]
[423949527,1780517486000,159.9715808,0.00023345,110]
[423949538,1780518116000,32726.09116788,0.000199,120]
[423949599,1780518632000,-500.0,0.00015823,2]
[423949594,1780518632000,-500.0,0.00015823,2]
[423949591,1780518632000,-300.60944859,0.00015661,2]
[423949598,1780518632000,-421.72,0.00015823,2]
[423949596,1780518632000,-500.0,0.00015823,2]
[423949593,1780518632000,-5174.03615738,0.00015725,2]
[423949592,1780518632000,-343.21010188,0.00015661,2]
[423949597,1780518632000,-500.0,0.00015823,2]
[423949595,1780518632000,-500.0,0.00015823,2]
[423949590,1780518632000,-220.30493041,0.00014333,2]
[423949584,1780518632000,-160.82682201,0.00011962,2]
[423949586,1780518632000,-179.0,0.00012179,2]
[423949588,1780518632000,-152.0,0.00013724,30]
[423949587,1780518632000,-324.5531,0.00013452,2]
[423949582,1780518632000,-2209.45376381,0.00010852,2]
[423949581,1780518632000,-5000.0,0.00010743,2]
[423949585,1780518632000,-151.09,0.00012,2]
[423949583,1780518632000,-1200.0,0.00011072,2]
[423949600,1780518632000,-500.0,0.00015823,2]
[423949580,1780518632000,-5000.0,0.00010636,2]
[423949589,1780518632000,-152.0,0.00013825,30]
[423949601,1780518632000,-292.2066766,0.00015823,2]
[423949606,1780518632000,-500.0,0.00015824,2]
[423949610,1780518632000,-500.0,0.00015824,2]
[423949609,1780518632000,-500.0,0.00015824,2]
[423949623,1780518632000,-500.0,0.00015824,2]
[423949621,1780518632000,-500.0,0.00015824,2]
[423949618,1780518632000,-500.0,0.00015824,2]
[423949622,1780518632000,-297.07626373,0.00015824,2]
[423949619,1780518632000,-500.0,0.00015824,2]
[423949617,1780518632000,-500.0,0.00015824,2]
[423949620,1780518632000,-500.0,0.00015824,2]
[423949615,1780518632000,-153.99052029,0.00015824,2]
[423949625,1780518632000,-500.0,0.00015824,2]
[423949616,1780518632000,-166.07091957,0.00015824,2]
[423949624,1780518632000,-500.0,0.00015824,2]
[423949612,1780518632000,-500.0,0.00015824,2]
[423949613,1780518632000,-500.0,0.00015824,2]
[423949605,1780518632000,-500.0,0.00015824,2]
[423949604,1780518632000,-500.0,0.00015824,2]
[423949603,1780518632000,-500.0,0.00015824,2]
[423949608,1780518632000,-500.0,0.00015824,2]
[423949607,1780518632000,-500.0,0.00015824,2]
[423949602,1780518632000,-262.92948976,0.00015824,2]
[423949611,1780518632000,-258.2616663,0.00015824,2]
[423949614,1780518632000,-154.29339048,0.00015824,2]
[423949655,1780518633000,-500.0,0.00016646,2]
[423949659,1780518633000,-500.0,0.0001692,2]
[423949656,1780518633000,-326.2939756,0.00016719,2]
[423949649,1780518633000,-321.49504262,0.00016486,2]
[423949652,1780518633000,-152.0,0.00016561,7]
[423949653,1780518633000,-152.0,0.00016566,7]
[423949647,1780518633000,-546.73792886,0.00016422,2]
[423949654,1780518633000,-500.0,0.00016646,2]
[423949658,1780518633000,-152.0,0.00016893,2]
[423949662,1780518633000,-180.24693831,0.00017172,2]
[423949661,1780518633000,-152.0,0.00016974,2]
[423949660,1780518633000,-258.56074859,0.0001692,2]
[423949663,1780518633000,-500.0,0.00017194,2]
[423949664,1780518633000,-1000.0,0.00017204,2]
[423949666,1780518633000,-500.0,0.00017468,2]
[423949665,1780518633000,-1000.0,0.00017204,4]
[423949667,1780518633000,-457.0791509,0.00017541,2]
[423949669,1780518633000,-326.2939756,0.00017541,2]
[423949648,1780518633000,-281.30816229,0.00016486,2]
[423949668,1780518633000,-326.1877401,0.00017541,2]
[423949657,1780518633000,-326.2939756,0.00016719,2]
[423949651,1780518633000,-152.0,0.00016561,7]
[423949635,1780518633000,-500.0,0.00016097,2]
[423949645,1780518633000,-500.0,0.00016372,2]
[423949670,1780518633000,-326.2939756,0.00017541,2]
[423949626,1780518633000,-500.0,0.00015824,2]
[423949627,1780518633000,-11181.4049941,0.00015825,2]
[423949638,1780518633000,-500.0,0.00016098,2]
[423949628,1780518633000,-2207.5342791,0.00015825,2]
[423949629,1780518633000,-12830.4434596,0.00015825,2]
[423949630,1780518633000,-151.0,0.00015897,2]
[423949631,1780518633000,-200.53174204,0.0001595,5]
[423949632,1780518633000,-500.0,0.00016097,2]
[423949650,1780518633000,-501.83366808,0.00016486,2]
[423949633,1780518633000,-500.0,0.00016097,2]
[423949636,1780518633000,-491.32,0.00016098,2]
[423949637,1780518633000,-500.0,0.00016098,2]
[423949640,1780518633000,-306.47971988,0.00016119,2]
[423949639,1780518633000,-500.0,0.00016098,2]
[423949641,1780518633000,-350.26253701,0.00016119,2]
[423949642,1780518633000,-196.444372,0.00016122,2]
[423949643,1780518633000,-519.75415515,0.00016371,2]
[423949644,1780518633000,-500.0,0.00016372,2]
[423949646,1780518633000,-500.37283738,0.00016372,2]
[423949634,1780518633000,-570.26,0.00016097,2]
[423949672,1780518633000,-457.0791509,0.00017541,2]
[423949701,1780518633000,-457.0791509,0.00018363,2]
[423949673,1780518633000,-318.216213,0.00017541,2]
[423949700,1780518633000,-500.0,0.0001829,2]
[423949699,1780518633000,-154.62,0.00018251,3]
[423949703,1780518633000,-457.0791509,0.00018363,2]
[423949702,1780518633000,-410.3042793,0.00018363,2]
[423949705,1780518633000,-1993.13480454,0.000184,2]
[423949714,1780518633000,-500.0,0.00018838,2]
[423949713,1780518633000,-213.61619116,0.00018746,2]
[423949704,1780518633000,-365.8843003,0.00018363,2]
[423949711,1780518633000,-891.47000725,0.00018672,2]
[423949697,1780518633000,-1993.13480454,0.000182,2]
[423949709,1780518633000,-1993.13480454,0.000185,2]
[423949712,1780518633000,-1993.13480454,0.000187,2]
[423949706,1780518633000,-457.0791509,0.00018401,2]
[423949708,1780518633000,-454.8339817,0.00018401,2]
[423949715,1780518633000,-1993.13480454,0.000189,2]
[423949716,1780518633000,-51686.07826056,0.00019,2]
[423949717,1780518633000,-1993.13480454,0.000191,2]
[423949718,1780518633000,-346.906089,0.00019112,2]
[423949671,1780518633000,-326.2939756,0.00017541,2]
[423949719,1780518633000,-27656.85178756,0.0001917,3]
[423949710,1780518633000,-500.0,0.00018564,2]
[423949698,1780518633000,-185.0,0.00018211,2]
[423949707,1780518633000,-457.0791509,0.00018401,2]
[423949694,1780518633000,-172.342,0.00018,2]
[423949676,1780518633000,-326.2939756,0.00017541,2]
[423949674,1780518633000,-326.2939756,0.00017541,2]
[423949696,1780518633000,-5174.03615736,0.00018179,2]
[423949675,1780518633000,-456.6184374,0.00017541,2]
[423949677,1780518633000,-457.0791509,0.00017541,2]
[423949679,1780518633000,-457.0791509,0.00017579,2]
[423949678,1780518633000,-600.0,0.00017548,2]
[423949681,1780518633000,-441.84058341,0.00017854,2]
[423949682,1780518633000,-308.23335377,0.00017854,2]
[423949684,1780518633000,-214.39711206,0.0001786,2]
[423949690,1780518633000,-154.90419379,0.00017865,2]
[423949680,1780518633000,-500.0,0.00017742,2]
[423949693,1780518633000,-1993.13480454,0.00018,2]
[423949686,1780518633000,-501.45187908,0.0001786,2]
[423949689,1780518633000,-193.4311337,0.00017865,2]
[423949683,1780518633000,-278.58437727,0.0001786,2]
[423949685,1780518633000,-213.72576522,0.0001786,2]
[423949687,1780518633000,-182.18351927,0.00017865,2]
[423949691,1780518633000,-200.89302484,0.00017916,2]
[423949692,1780518633000,-156.27620338,0.00017916,2]
[423949688,1780518633000,-330.89590884,0.00017865,2]
[423949695,1780518633000,-500.0,0.00018016,2]
[423949752,1780518638000,-151.0,0.00019178,2]
[423949749,1780518638000,-151.0,0.00019178,2]
[423949754,1780518638000,-151.0,0.00019178,2]
[423949755,1780518638000,-151.0,0.00019178,2]
[423949751,1780518638000,-151.0,0.00019178,2]
[423949747,1780518638000,-151.0,0.00019178,2]
[423949745,1780518638000,-151.0,0.00019178,2]
[423949748,1780518638000,-151.0,0.00019178,2]
[423949760,1780518638000,-151.0,0.00019178,2]
[423949750,1780518638000,-151.0,0.00019178,2]
[423949759,1780518638000,-151.0,0.00019178,2]
[423949768,1780518638000,-151.0,0.00019178,2]
[423949770,1780518638000,-151.0,0.00019178,2]
[423949766,1780518638000,-151.0,0.00019178,2]
[423949769,1780518638000,-151.0,0.00019178,2]
[423949771,1780518638000,-151.0,0.00019178,2]
[423949764,1780518638000,-151.0,0.00019178,2]
[423949772,1780518638000,-151.0,0.00019178,2]
[423949765,1780518638000,-169.368331,0.00019178,2]
[423949767,1780518638000,-151.0,0.00019178,2]
[423949753,1780518638000,-151.0,0.00019178,2]
[423949762,1780518638000,-263.073233,0.00019178,2]
[423949761,1780518638000,-151.0,0.00019178,2]
[423949758,1780518638000,-151.0,0.00019178,2]
[423949724,1780518638000,-303.194214,0.00019178,2]
[423949756,1780518638000,-151.0,0.00019178,2]
[423949763,1780518638000,-151.0,0.00019178,2]
[423949723,1780518638000,-303.194214,0.00019178,2]
[423949722,1780518638000,-27680.33243071,0.0001917,3]
[423949730,1780518638000,-303.194214,0.00019178,2]
[423949725,1780518638000,-303.194214,0.00019178,2]
[423949727,1780518638000,-303.194214,0.00019178,2]
[423949726,1780518638000,-303.194214,0.00019178,2]
[423949728,1780518638000,-303.194214,0.00019178,2]
[423949729,1780518638000,-303.194214,0.00019178,2]
[423949732,1780518638000,-303.194214,0.00019178,2]
[423949731,1780518638000,-303.194214,0.00019178,2]
[423949757,1780518638000,-151.0,0.00019178,2]
[423949733,1780518638000,-303.194214,0.00019178,2]
[423949743,1780518638000,-151.0,0.00019178,2]
[423949744,1780518638000,-151.0,0.00019178,2]
[423949739,1780518638000,-303.194214,0.00019178,2]
[423949738,1780518638000,-303.194214,0.00019178,2]
[423949736,1780518638000,-303.194214,0.00019178,2]
[423949737,1780518638000,-303.194214,0.00019178,2]
[423949734,1780518638000,-303.194214,0.00019178,2]
[423949735,1780518638000,-303.194214,0.00019178,2]
[423949741,1780518638000,-303.194214,0.00019178,2]
[423949740,1780518638000,-303.194214,0.00019178,2]
[423949746,1780518638000,-151.0,0.00019178,2]
[423949742,1780518638000,-303.19421,0.00019178,2]
[423949774,1780518638000,-151.0,0.00019178,2]
[423949780,1780518638000,-151.0,0.00019178,2]
[423949773,1780518638000,-151.0,0.00019178,2]
[423949803,1780518638000,-163.18251,0.00019178,2]
[423949802,1780518638000,-163.18251,0.00019178,2]
[423949804,1780518638000,-163.18251,0.00019178,2]
[423949818,1780518638000,-163.182516,0.00019178,2]
[423949809,1780518638000,-163.18251,0.00019178,2]
[423949810,1780518638000,-163.18251,0.00019178,2]
[423949813,1780518638000,-163.18251,0.00019178,2]
[423949812,1780518638000,-163.18251,0.00019178,2]
[423949811,1780518638000,-163.18251,0.00019178,2]
[423949819,1780518638000,-262.132489,0.00019178,2]
[423949808,1780518638000,-163.18251,0.00019178,2]
[423949820,1780518638000,-262.132489,0.00019178,2]
[423949817,1780518638000,-163.18251,0.00019178,2]
[423949816,1780518638000,-163.18251,0.00019178,2]
[423949814,1780518638000,-163.18251,0.00019178,2]
[423949821,1780518638000,-262.132489,0.00019178,2]
[423949825,1780518638000,-262.132489,0.00019178,2]
[423949826,1780518638000,-262.132489,0.00019178,2]
[423949823,1780518638000,-262.132489,0.00019178,2]
[423949822,1780518638000,-262.132489,0.00019178,2]
[423949824,1780518638000,-262.132489,0.00019178,2]
[423949827,1780518638000,-262.132489,0.00019178,2]
[423949784,1780518638000,-151.0,0.00019178,2]
[423949805,1780518638000,-163.18251,0.00019178,2]
[423949801,1780518638000,-163.18251,0.00019178,2]
[423949815,1780518638000,-163.18251,0.00019178,2]
[423949800,1780518638000,-163.18251,0.00019178,2]
[423949798,1780518638000,-151.0,0.00019178,2]
[423949779,1780518638000,-151.0,0.00019178,2]
[423949781,1780518638000,-151.0,0.00019178,2]
[423949783,1780518638000,-151.0,0.00019178,2]
[423949777,1780518638000,-151.0,0.00019178,2]
[423949776,1780518638000,-151.0,0.00019178,2]
[423949785,1780518638000,-151.0,0.00019178,2]
[423949782,1780518638000,-168.651369,0.00019178,2]
[423949778,1780518638000,-151.0,0.00019178,2]
[423949789,1780518638000,-151.0,0.00019178,2]
[423949787,1780518638000,-151.0,0.00019178,2]
[423949788,1780518638000,-151.0,0.00019178,2]
[423949775,1780518638000,-151.0,0.00019178,2]
[423949806,1780518638000,-163.18251,0.00019178,2]
[423949786,1780518638000,-151.0,0.00019178,2]
[423949790,1780518638000,-151.0,0.00019178,2]
[423949794,1780518638000,-151.0,0.00019178,2]
[423949793,1780518638000,-151.0,0.00019178,2]
[423949792,1780518638000,-151.0,0.00019178,2]
[423949796,1780518638000,-197.592887,0.00019178,2]
[423949799,1780518638000,-163.18251,0.00019178,2]
[423949795,1780518638000,-151.0,0.00019178,2]
[423949807,1780518638000,-163.18251,0.00019178,2]
[423949791,1780518638000,-151.0,0.00019178,2]
[423949797,1780518638000,-151.0,0.00019178,2]
[423949867,1780518639000,-151.0,0.00019178,2]
[423949868,1780518639000,-151.0,0.00019178,2]
[423949861,1780518639000,-151.0,0.00019178,2]
[423949874,1780518639000,-151.0,0.00019178,2]
[423949871,1780518639000,-151.0,0.00019178,2]
[423949863,1780518639000,-151.0,0.00019178,2]
[423949862,1780518639000,-151.0,0.00019178,2]
[423949865,1780518639000,-151.0,0.00019178,2]
[423949873,1780518639000,-151.0,0.00019178,2]
[423949864,1780518639000,-151.0,0.00019178,2]
[423949866,1780518639000,-151.0,0.00019178,2]
[423949872,1780518639000,-151.0,0.00019178,2]
[423949869,1780518639000,-151.0,0.00019178,2]
[423949870,1780518639000,-151.0,0.00019178,2]
[423949887,1780518639000,-1993.13480454,0.000193,2]
[423949877,1780518639000,-151.0,0.00019178,2]
[423949878,1780518639000,-151.0,0.00019178,2]
[423949884,1780518639000,-326.2939756,0.00019185,2]
[423949883,1780518639000,-242.340802,0.00019178,2]
[423949888,1780518639000,-400.0,0.000193,2]
[423949886,1780518639000,-457.0791509,0.00019223,2]
[423949880,1780518639000,-151.0,0.00019178,2]
[423949881,1780518639000,-193.044014,0.00019178,2]
[423949885,1780518639000,-456.7720085,0.00019223,2]
[423949879,1780518639000,-151.0,0.00019178,2]
[423949876,1780518639000,-294.882373,0.00019178,2]
[423949890,1780518639000,-273.15882841,0.00019363,2]
[423949857,1780518639000,-151.0,0.00019178,2]
[423949875,1780518639000,-151.0,0.00019178,2]
[423949858,1780518639000,-151.0,0.00019178,2]
[423949831,1780518639000,-262.132489,0.00019178,2]
[423949860,1780518639000,-151.0,0.00019178,2]
[423949830,1780518639000,-262.132489,0.00019178,2]
[423949834,1780518639000,-262.132489,0.00019178,2]
[423949829,1780518639000,-262.132489,0.00019178,2]
[423949832,1780518639000,-262.132489,0.00019178,2]
[423949828,1780518639000,-262.132489,0.00019178,2]
[423949900,1780518639000,-226.991931,0.000196,2]
[423949833,1780518639000,-262.132489,0.00019178,2]
[423949835,1780518639000,-262.132489,0.00019178,2]
[423949837,1780518639000,-262.132489,0.00019178,2]
[423949836,1780518639000,-262.132489,0.00019178,2]
[423949846,1780518639000,-151.0,0.00019178,2]
[423949838,1780518639000,-262.132481,0.00019178,2]
[423949847,1780518639000,-151.0,0.00019178,2]
[423949841,1780518639000,-151.0,0.00019178,2]
[423949842,1780518639000,-151.0,0.00019178,2]
[423949845,1780518639000,-151.0,0.00019178,2]
[423949839,1780518639000,-151.0,0.00019178,2]
[423949844,1780518639000,-151.0,0.00019178,2]
[423949843,1780518639000,-151.0,0.00019178,2]
[423949840,1780518639000,-151.0,0.00019178,2]
[423949848,1780518639000,-151.0,0.00019178,2]
[423949851,1780518639000,-151.0,0.00019178,2]
[423949850,1780518639000,-151.0,0.00019178,2]
[423949852,1780518639000,-151.0,0.00019178,2]
[423949853,1780518639000,-151.0,0.00019178,2]
[423949854,1780518639000,-151.0,0.00019178,2]
[423949849,1780518639000,-151.0,0.00019178,2]
[423949856,1780518639000,-220.870053,0.00019178,2]
[423949855,1780518639000,-151.0,0.00019178,2]
[423949859,1780518639000,-151.0,0.00019178,2]
[423949889,1780518639000,-720.0,0.00019303,2]
[423949891,1780518639000,-800.0,0.00019381,2]
[423949897,1780518639000,-277.759559,0.000196,2]
[423949939,1780518639000,-412.872782,0.0002058,2]
[423949936,1780518639000,-167.8,0.00020548,2]
[423949935,1780518639000,-152.01,0.000205,2]
[423949937,1780518639000,-197.854004,0.0002058,2]
[423949938,1780518639000,-160.0,0.0002058,2]
[423949940,1780518639000,-665.745564,0.0002058,2]
[423949942,1780518639000,-166.229813,0.0002058,2]
[423949943,1780518639000,-160.0,0.0002058,2]
[423949945,1780518639000,-181.109761,0.0002058,2]
[423949941,1780518639000,-415.574531,0.0002058,2]
[423949946,1780518639000,-453.983862,0.0002058,2]
[423949944,1780518639000,-170.55488,0.0002058,2]
[423949948,1780518639000,-800.0,0.0002059,2]
[423949947,1780518639000,-272.390317,0.0002058,2]
[423949959,1780518639000,-800.0,0.00020955,2]
[423949950,1780518639000,-1405.09498512,0.0002061,2]
[423949951,1780518639000,-5174.03615736,0.00020632,2]
[423949949,1780518639000,-151.55,0.000206,2]
[423949952,1780518639000,-225.407,0.0002068,2]
[423949953,1780518639000,-1053.093312,0.00020786,2]
[423949958,1780518639000,-259.42734622,0.000209,2]
[423949956,1780518639000,-540.93485036,0.00020894,2]
[423949957,1780518639000,-160.0,0.00020894,3]
[423949954,1780518639000,-800.0,0.00020791,2]
[423949955,1780518639000,-167.8,0.00020822,2]
[423949899,1780518639000,-160.0,0.000196,2]
[423949961,1780518639000,-200.0,0.00021,2]
[423949963,1780518639000,-200.0,0.00021,2]
[423949962,1780518639000,-200.0,0.00021,2]
[423949934,1780518639000,-167.8,0.00020274,2]
[423949933,1780518639000,-800.0,0.00020263,2]
[423949960,1780518639000,-200.0,0.00021,2]
[423949923,1780518639000,-10000.0,0.0002,2]
[423949925,1780518639000,-300.0,0.0002,4]
[423949894,1780518639000,-300.0,0.00019589,3]
[423949895,1780518639000,-395.124297,0.000196,2]
[423949892,1780518639000,-235.0,0.00019479,3]
[423949898,1780518639000,-185.17304,0.000196,2]
[423949893,1780518639000,-1993.13480454,0.000195,2]
[423949902,1780518639000,-181.593545,0.000196,2]
[423949912,1780518639000,-384.32167102,0.0001996,2]
[423949914,1780518639000,-51889.12265848,0.0002,2]
[423949917,1780518639000,-139320.8865589,0.0002,2]
[423949904,1780518639000,-1062.39667288,0.000196,2]
[423949901,1780518639000,-293.983862,0.000196,2]
[423949910,1780518639000,-7945.74001337,0.000199,2]
[423949911,1780518639000,-800.0,0.00019916,2]
[423949908,1780518639000,-1993.13480454,0.000197,2]
[423949896,1780518639000,-263.416198,0.000196,2]
[423949909,1780518639000,-245.02527093,0.00019798,2]
[423949907,1780518639000,-13599.9495,0.00019695,2]
[423949928,1780518639000,-9316.063832,0.000201,2]
[423949926,1780518639000,-151.26,0.000201,2]
[423949924,1780518639000,-7607.90854833,0.0002,2]
[423949921,1780518639000,-500.0,0.0002,2]
[423949922,1780518639000,-250.0,0.0002,2]
[423949927,1780518639000,-200.39,0.000201,2]
[423949931,1780518639000,-30005.82559949,0.000202,2]
[423949906,1780518639000,-264.785691,0.000196,2]
[423949930,1780518639000,-1392.92188633,0.00020172,2]
[423949929,1780518639000,-2000.0,0.00020109,7]
[423949919,1780518639000,-292.60068193,0.0002,7]
[423949932,1780518639000,-800.0,0.00020225,2]
[423949920,1780518639000,-127709.07850701,0.0002,2]
[423949990,1780518640000,-47588.90513105,0.00021,2]
[423950004,1780518640000,-429.57,0.00021072,7]
[423949996,1780518640000,-3000.0,0.0002102,2]
[423949998,1780518640000,-3000.0,0.0002104,2]
[423949997,1780518640000,-3000.0,0.0002103,2]
[423950000,1780518640000,-3000.0,0.0002106,2]
[423950002,1780518640000,-429.57,0.00021072,7]
[423950001,1780518640000,-3000.0,0.0002107,2]
[423950007,1780518640000,-429.57,0.00021072,7]
[423950003,1780518640000,-429.57,0.00021072,7]
[423950008,1780518640000,-429.57,0.00021072,7]
[423949999,1780518640000,-3000.0,0.0002105,2]
[423950010,1780518640000,-429.57,0.00021072,7]
[423950005,1780518640000,-429.57,0.00021072,7]
[423950019,1780518640000,-3000.0,0.0002114,2]
[423950020,1780518640000,-3000.0,0.0002115,2]
[423950021,1780518640000,-3000.0,0.0002116,2]
[423950009,1780518640000,-429.57,0.00021072,7]
[423950011,1780518640000,-429.53262398,0.00021072,7]
[423950014,1780518640000,-167.8,0.00021096,2]
[423950018,1780518640000,-3000.0,0.0002113,2]
[423950013,1780518640000,-3000.0,0.0002109,2]
[423950015,1780518640000,-3000.0,0.000211,2]
[423950016,1780518640000,-3000.0,0.0002111,2]
[423949988,1780518640000,-46061.31009444,0.00021,2]
[423950006,1780518640000,-429.57,0.00021072,7]
[423949987,1780518640000,-280.61609455,0.00021,2]
[423949977,1780518640000,-200.0,0.00021,2]
[423949985,1780518640000,-200.0,0.00021,2]
[423950017,1780518640000,-3000.0,0.0002112,2]
[423949969,1780518640000,-200.0,0.00021,2]
[423949970,1780518640000,-200.0,0.00021,2]
[423949964,1780518640000,-200.0,0.00021,2]
[423949965,1780518640000,-200.0,0.00021,2]
[423949966,1780518640000,-200.0,0.00021,2]
[423949972,1780518640000,-200.0,0.00021,2]
[423949968,1780518640000,-200.0,0.00021,2]
[423949971,1780518640000,-200.0,0.00021,2]
[423949967,1780518640000,-200.0,0.00021,2]
[423949974,1780518640000,-200.0,0.00021,2]
[423949973,1780518640000,-200.0,0.00021,2]
[423949989,1780518640000,-50000.0,0.00021,2]
[423949975,1780518640000,-200.0,0.00021,2]
[423949979,1780518640000,-200.0,0.00021,2]
[423949982,1780518640000,-200.0,0.00021,2]
[423949976,1780518640000,-200.0,0.00021,2]
[423949978,1780518640000,-200.0,0.00021,2]
[423949981,1780518640000,-200.0,0.00021,2]
[423949984,1780518640000,-200.0,0.00021,2]
[423949992,1780518640000,-3000.0,0.00021,2]
[423949983,1780518640000,-200.0,0.00021,2]
[423949995,1780518640000,-800.0,0.00021013,2]
[423949986,1780518640000,-4711.56,0.00021,2]
[423949994,1780518640000,-3000.0,0.0002101,2]
[423949993,1780518640000,-250.0,0.00021,2]
[423949980,1780518640000,-200.0,0.00021,2]
[423950012,1780518640000,-3000.0,0.0002108,2]
[423949991,1780518640000,-2327.015958,0.00021,2]
[423950025,1780518640000,-3000.0,0.000212,2]
[423950050,1780518640000,-3000.0,0.000214,2]
[423950055,1780518640000,-1051.95789943,0.000215,2]
[423950056,1780518640000,-13016.43966314,0.000215,2]
[423950058,1780518640000,-800.0,0.00021605,2]
[423950049,1780518640000,-3000.0,0.0002139,2]
[423950060,1780518640000,-743.171008,0.00021609,2]
[423950057,1780518640000,-502.36861765,0.00021536,5]
[423950063,1780518640000,-800.0,0.00021622,2]
[423950062,1780518640000,-204.665856,0.00021609,2]
[423950061,1780518640000,-249.344718,0.00021609,2]
[423950068,1780518640000,-151.26,0.000217,2]
[423950069,1780518640000,-326.1200345,0.00021701,2]
[423950052,1780518640000,-800.0,0.0002141,2]
[423950065,1780518640000,-2003.80170879,0.00021673,2]
[423950067,1780518640000,-250.0,0.00021698,30]
[423950064,1780518640000,-167.8,0.00021644,2]
[423950070,1780518640000,-540.93485036,0.00021713,2]
[423950071,1780518640000,-1000.0,0.000218,7]
[423950072,1780518640000,-160.0,0.00021825,5]
[423950075,1780518640000,-5000.0,0.00021873,2]
[423950073,1780518640000,-2003.20114921,0.00021873,2]
[423950077,1780518640000,-38000.0,0.000219,3]
[423950074,1780518640000,-9151.83273237,0.00021873,2]
[423950079,1780518640000,-1393.27389609,0.00021909,3]
[423950078,1780518640000,-21590.41272803,0.00021909,3]
[423950022,1780518640000,-3000.0,0.0002117,2]
[423950066,1780518640000,-382.46913384,0.00021673,2]
[423950076,1780518640000,-5000.0,0.00021873,2]
[423950059,1780518640000,-384.647529,0.00021609,2]
[423950054,1780518640000,-3202.621046,0.0002143,2]
[423950024,1780518640000,-3000.0,0.0002119,2]
[423950026,1780518640000,-3000.0,0.0002121,2]